Cogmind - Beta 13 @@@ ROGUE MODE // 2024.04.01 @ 13:36:25 Player: Sixten Result: Self-destructed Performance ------------- Evolutions (1) 500 Regions Visited (3) 600 Robots Destroyed (3) 15 Value Destroyed (125) 125 Prototype IDs (0) 0 Alien Tech Used (0) 0 Bonus (0) 0 TOTAL SCORE: 1240 Bonus ------- None Cogmind --------- Core Integrity 210/400 Matter 180/300 Energy 100/100 System Corruption 0% Temperature Cool (0) Movement Core (350) Ox6 Location -9/Storage Parts ------- > --- POWER (1) -------- (None) > --- PROPULSION (4) --- (None) > --- UTILITY (2) ------ Large Storage Unit Core Shielding > --- WEAPON (2) ------- (None) > --- INVENTORY (15) --- Ion Engine Aluminum Leg Small Storage Unit Peak State ------------ > --- POWER ------------ Light Ion Engine > --- PROPULSION ------- Aluminum Leg Aluminum Leg > --- UTILITY ---------- Small Storage Unit Core Shielding > --- WEAPON ----------- Assault Rifle Grenade Launcher > --- INVENTORY -------- Ion Engine [Rating: 7] Favorites ----------- Power Light Ion Engine Engine Light Ion Engine Propulsion Aluminum Leg Leg Aluminum Leg Utility Core Shielding Storage Large Storage Unit Protection Core Shielding Weapon Assault Rifle Ballistic Gun Assault Rifle Launcher Grenade Launcher Build | -11 -10 -9 -9 ------- Run | Yrd Mat Mat Sto Slots Evolved 2 | . . 2 . Power . | . . . . Propulsion 2 | . . 2 . Utility . | . . . . Weapon . | . . . . Parts Attached 8 | 5 3 . . Power 1 | 1 . . . Engine 1 | 1 . . . Core . | . . . . Reactor . | . . . . Propulsion 2 | 2 . . . Treads . | . . . . Leg 2 | 2 . . . Wheel . | . . . . Hover . | . . . . Flight . | . . . . Utility 3 | 1 2 . . Device . | . . . . Storage 2 | 1 1 . . Processor . | . . . . Hackware . | . . . . Protection 1 | . 1 . . Artifact . | . . . . Weapon 2 | 1 1 . . Energy Gun . | . . . . Energy Cannon . | . . . . Ballistic Gun 1 | 1 . . . Ballistic Cannon . | . . . . Launcher 1 | . 1 . . Special Weapon . | . . . . Impact Weapon . | . . . . Slashing Weapon . | . . . . Piercing Weapon . | . . . . Special Melee Weapon . | . . . . Unidentified Prototypes . | . . . . Parts Lost 5 | . 1 . 4 Power 1 | . . . 1 Propulsion 2 | . . . 2 Utility . | . . . . Weapon 2 | . 1 . 1 Highest Loss Streak 4 | . 1 . 4 To Critical Strikes . | . . . . Average Slot Usage (%) 77 | . 91 66 45 Engine 11 | . 14 11 4 Leg 24 | . 28 22 15 Storage 12 | . 14 11 11 Protection 10 | . 9 11 11 Ballistic Gun 11 | . 14 11 3 Launcher 6 | . 9 . . Naked Turns . | . . . . Heaviest Build 29 | 10 29 26 26 Greatest Support 20 | 20 20 20 20 Greatest Overweight (x) 6 | . 1 1 6 Average Overweight (x) . | . . 1 1 Largest Inventory Capacity 15 | 8 15 15 15 Average Capacity 12 | 7 12 15 15 Most Carried 3 | 1 3 3 3 Average Carried 2 | . 2 3 3 Final Capacity 15 | 8 15 15 15 Final Carried 3 | 1 3 3 3 Class Distribution -------------------- 100% | Mutant Dominant Class ---------------- Mutant | -10/Materials Mutant | -9/Materials Mutant | -9/Storage Resources | -11 -10 -9 -9 ----------- Run | Yrd Mat Mat Sto Matter Collected 238 | 197 41 . . Remotely . | . . . . Salvage Created 73 | . 73 . . Parts 4 | . 4 . . Haulers Intercepted . | . . . . Recyclers Shooed . | . . . . Parts Field Recycled . | . . . . Retrieved Matter . | . . . . Parts Self-Destructed . | . . . . Prevented . | . . . . Kills | -11 -10 -9 -9 ------- Run | Yrd Mat Mat Sto Combat Hostiles Destroyed 3 | . 3 . . Guns 2 | . 2 . . AOE 1 | . 1 . . Classes Destroyed 1 | . 1 . . Grunt 3 | . 3 . . Best Kill Streak 2 | . 2 . . Combat Bots Only 2 | . 2 . . Max Kills in Single Turn 1 | . 1 . . Gunslinging . | . . . . Exploded 1 | . 1 . . Melee . | . . . . Uniques/NPCs Destroyed . | . . . . Combat | -11 -10 -9 -9 -------- Run | Yrd Mat Mat Sto Hostile Shots Fired 62 | . 14 6 42 Missed 11 | . 3 2 6 Damage Taken 736 | . 186 55 495 Core 212 | . 22 . 190 Absorbed by Shields . | . . . . Redirected to Shielding 43 | . 5 . 38 Core Remaining (%) 95 | 100 91 . . Volleys Fired 11 | . 9 . 2 Largest 2 | . 2 . 1 Hottest 50 | . 50 . 20 Shots Fired 18 | . 16 . 2 Gun 11 | . 9 . 2 Cannon . | . . . . Launcher 7 | . 7 . . Special . | . . . . Kinetic 11 | . 9 . 2 Thermal . | . . . . Explosive 7 | . 7 . . Electromagnetic . | . . . . Robot Hit Streak 2 | . 2 . 1 Robot Miss Streak 1 | . 1 . 1 Penetration Max . | . . . . Secondary Targets . | . . . . Shots Hit Robots 3 | . 2 . 1 Core Hits 11 | . 11 . . Critical Kills . | . . . . Critical Parts Destroyed . | . . . . Critical Strikes . | . . . . Melee Attacks . | . . . . Impact . | . . . . Slashing . | . . . . Piercing . | . . . . Sneak Attacks . | . . . . Combat Hostiles . | . . . . Follow-up Attacks . | . . . . Damage Inflicted 341 | . 327 . 14 Guns 83 | . 69 . 14 Cannons . | . . . . Explosions 258 | . 258 . . Melee . | . . . . Ramming . | . . . . Kinetic 83 | . 69 . 14 Thermal . | . . . . Explosive 258 | . 258 . . Electromagnetic . | . . . . Impact . | . . . . Slashing . | . . . . Piercing . | . . . . Highest Corruption . | . . . . Average Corruption . | . . . . Corruption Purged . | . . . . Corruption Blocked . | . . . . Overload Shots . | . . . . Overflow Damage . | . . . . Projectiles . | . . . . Explosions . | . . . . Melee . | . . . . Knockbacks . | . . . . Impact . | . . . . Kinetic . | . . . . Secondary . | . . . . Self-Inflicted Damage 23 | . 23 . . Shots 1 | . 1 . . Rammed . | . . . . Targets Rammed . | . . . . Kicked . | . . . . Crushed . | . . . . Highest Temperature 23 | . 23 4 . Average Temperature 14 | . 14 4 . Received Heat Transfer 294 | . 90 36 168 Siege Activations . | . . . . Robots Corrupted . | . . . . Combat Hostiles . | . . . . Parts Fried . | . . . . Impact Corruptions . | . . . . Robots Melted . | . . . . Combat Hostiles . | . . . . Parts Melted . | . . . . Heat Transferred . | . . . . Parts Sabotaged . | . . . . Parts Stolen . | . . . . Parts Stripped . | . . . . Power Chain Reactions . | . . . . Alert | -11 -10 -9 -9 ------- Run | Yrd Mat Mat Sto Peak Influence 110 | . 110 61 50 Initial 46 | . . 46 25 Average 29 | . 36 48 33 Maximum Alert Level . | . . . . Low Security (%) 100 | 100 100 100 100 Level 1 . | . . . . Level 2 . | . . . . Level 3 . | . . . . Level 4 . | . . . . Level 5 . | . . . . High Security . | . . . . Max Security . | . . . . Squads Dispatched 2 | . 1 . 1 Investigation 1 | . 1 . . Extermination . | . . . . Reinforcement 1 | . . . 1 Assault . | . . . . Garrison . | . . . . Intercept . | . . . . Searches Triggered . | . . . . Construction Impeded . | . . . . Haulers Reinforced . | . . . . Active Scanning Responses . | . . . . Cargo Convoy Interrupts . | . . . . Stealth | -11 -10 -9 -9 --------- Run | Yrd Mat Mat Sto Distress Signals . | . . . . Communications Jammed . | . . . . Distress Signals . | . . . . Times Spotted 9 | . 3 1 5 Peak Tracking Total 4 | . 2 2 4 Tactical Retreats . | . . . . Traps | -11 -10 -9 -9 ------- Run | Yrd Mat Mat Sto Traps Triggered 1 | . 1 . . Indirectly . | . . . . Trap Hack Attempts . | . . . . Triggered . | . . . . Disarmed . | . . . . Reprogrammed . | . . . . Reused . | . . . . Traps Extracted . | . . . . Installed . | . . . . Triggered . | . . . . Machines | -11 -10 -9 -9 ---------- Run | Yrd Mat Mat Sto Machines Disabled 1 | . 1 . . Max in Single Turn 1 | . 1 . . Machines Repaired . | . . . . Machines Dismantled . | . . . . Machines Sabotaged . | . . . . Overloaded Fab Kills . | . . . . Hacking | -11 -10 -9 -9 --------- Run | Yrd Mat Mat Sto Machines Accessed . | . . . . Terminals . | . . . . Fabricators . | . . . . Repair Stations . | . . . . Recycling Units . | . . . . Scanalyzers . | . . . . Garrison Access . | . . . . Total Hacks . | . . . . Successful . | . . . . Failed . | . . . . Catastrophic . | . . . . Database Lockouts . | . . . . Manual . | . . . . Terminals . | . . . . Fabricators . | . . . . Repair Stations . | . . . . Recycling Units . | . . . . Scanalyzers . | . . . . Garrison Access . | . . . . Terminal Hacks . | . . . . Fabricator Hacks . | . . . . Repair Station Hacks . | . . . . Recycling Unit Hacks . | . . . . Scanalyzer . | . . . . Garrison Access Hacks . | . . . . Unauthorized Hacks . | . . . . Terminals . | . . . . Fabricators . | . . . . Repair Stations . | . . . . Recycling Units . | . . . . Scanalyzers . | . . . . Garrison Access . | . . . . Data Cores Recovered . | . . . . Used . | . . . . Hacking Detections . | . . . . Full Trace Events . | . . . . Feedback Events . | . . . . Feedback Blocked . | . . . . Robot Schematics Acquired . | . . . . Robots Built . | . . . . Authchips . | . . . . Time . | . . . . Total Robot Build Rating . | . . . . Part Schematics Acquired . | . . . . Parts Built . | . . . . Authchips . | . . . . Time . | . . . . Total Part Build Rating . | . . . . Parts Repaired . | . . . . Time . | . . . . Parts Recycled . | . . . . Recycled Matter . | . . . . Retrieved Matter . | . . . . Retrieved Components . | . . . . Parts Scanalyzed . | . . . . Part Schematics Acquired . | . . . . Parts Damaged . | . . . . Bothacking | -11 -10 -9 -9 ------------ Run | Yrd Mat Mat Sto Used RIF Installer . | . . . . Robots Hacked . | . . . . Non-combat . | . . . . Combat . | . . . . Robot Hacks Applied . | . . . . Relay Couplers Released . | . . . . Fabnet Peak Effective % . | . . . . Robots Rewired . | . . . . Allies Hacked . | . . . . Hacks Repelled . | . . . . Allies | -11 -10 -9 -9 -------- Run | Yrd Mat Mat Sto Total Allies . | . . . . Largest Group . | . . . . Highest-Rated Group . | . . . . Highest-Rated Ally . | . . . . Total Orders . | . . . . Ally Attacks . | . . . . Total Damage . | . . . . Kills . | . . . . Allies Corrupted . | . . . . Allies Melted . | . . . . Intel | -11 -10 -9 -9 ------- Run | Yrd Mat Mat Sto Robot Analysis Total . | . . . . Derelict Logs Recovered . | . . . . Drone Launches . | . . . . Drone Recoveries . | . . . . Exploration | -11 -10 -9 -9 ------------- Run | Yrd Mat Mat Sto Turns Passed 569 | 111 304 42 112 Spaces Moved 337 | 91 174 23 49 Core 13 | 9 . . 4 Treads . | . . . . Legs 324 | 82 174 23 45 Wheels . | . . . . Hover . | . . . . Flight . | . . . . Fastest Speed 50 | 50 120 190 190 Average Speed 157 | 113 158 190 218 Slowest Speed 350 | 120 190 190 350 Overloaded Moves . | . . . . Propulsion Burnouts . | . . . . Robots Hopped . | . . . . Cave-ins Triggered . | . . . . Exploration Rate (%) 12 | 5 24 4 18 Regions Visited 3 Branch Regions 1 Pre-discovered Areas . | . . . . Known Exits Taken . | . . . . Unknown Exits Taken 3 | 1 1 1 . Scrap Searched . | . . . . Spaces Dug . | . . . . Terrain Destroyed 27 | . 27 . . Melee . | . . . . Projectile . | . . . . AOE 27 | . 27 . . Terrain Rammed . | . . . . Walls Destroyed . | . . . . Machines Disabled . | . . . . Actions | -11 -10 -9 -9 --------- Run | Yrd Mat Mat Sto Total 356 | 97 186 22 51 Wait . | . . . . Move 334 | 90 173 22 49 Hop . | . . . . Pick Up 3 | 2 1 . . Fast Attach 6 | 4 2 . . Attach 1 | 1 . . . Detach . | . . . . Swap 1 | . 1 . . Drop . | . . . . Fire 11 | . 9 . 2 Melee . | . . . . Ram . | . . . . Kick . | . . . . Crush . | . . . . Escape Stasis . | . . . . Rewire . | . . . . Trap . | . . . . Miscellaneous . | . . . . Route ------- -11/Scrapyard -10/Materials -9/Materials (discovered 2 exits: [*Sto x2]) -9/Storage History --------- Turn | Location | Event 5 | -11/Scrapyard | Discovered new exit (range 16) 112 | -11/Scrapyard | Entered Materials 307 | -10/Materials | Build established: Mutant 313 | -10/Materials | Discovered new exit (range 4) 416 | -10/Materials | Entered another Materials area 416 | -9/Materials | Evolved 2 slots: Propulsion x2 416 | -9/Materials | Discovered new exit (range 16) 451 | -9/Materials | Discovered new exit (range 16) 458 | -9/Materials | Entered Storage 570 | -9/Storage | Self-destructed Last Messages --------------- PARAMETERS=PROPULSION+2 LOCATION=UNKNOWN GOAL=ESCAPE 00416_ EXIT=FOUND 00452_ Critical hit (Burn: +37). LOCATION=UNKNOWN GOAL=ESCAPE 00490_ K-01 Serf cleans the Transport Mainframe. 00492_ Assault Rifle destroyed. 00493_ K-01 Serf cleans the Transport Mainframe. 00507_ K-01 Serf collects debris. 00508_ Lgt. Ion Engine destroyed. 00513_ K-01 Serf collects debris. 00516_ O-16 Technician: "IFF HANDSHAKE FAILED. SECURING TERMINAL." 00517_ K-01 Serf destroyed. 00526_ Aluminum Leg destroyed. 00528_ ALERT: Hostiles spotted, dispatching reinforcements to Terminal S012. 00555_ Aluminum Leg destroyed. Map ----- +----------------------------------------------------+ | ??????????????????????????????????????????????? | | ??????????????????????????????????????????????? | | ??????????????????????????????????????????????? | | ??????????????????????????????????????????????? | | ??????????????????????????????????????????????? | | ??????????????????????????????????????????????? | | ??????????????????????????????????????????????? | | ??????????????????????????????????????????????? | | ??????????????????????????????????????????????? | | ??????????????????????????????????????????????? | | ??????????????????????????????????????????????? | | ?????????????????????????"????????????????????? | | ?????????????????????????"????????????????????? | | ????????????????????????? ?????? ???????????? | | ????????????????????????? ?????# #??????????? | | ????????????????????????? ?????+ #??????????? | | ?????????????????????#+##+?????# #??????????? | | ?????????????????????# #????# #??????????? | | ?????????????????????? +????# "??????????? | | ?????????????????????? w#????# #??????????? | | ??????????????????????? #????# #??????????? | | ?????????????????????? #????# #??????????? | | ??????????????????????? #????# #??????????? | | ???????????????????????? #????# ##########?? | | ??????????????????????###g###### # #?? | | ??????????????????????# @ # + """ T #?? | | ??????????????????????# """ # # """ #?? | | ??????????????????????# """ # # """ #?? | | ?????????????# ### """ + + #?? | | ??????????" / + Y # # """ #?? | | ????????????????###+### r""" # # """ #? | | ??????????????????????# """ # # """ ##? | | ??????????????????????# """ # # #?? | | ??????????????????????# # ##########?? | | ??????????????????????##########% #? ?????? | | ??????????????????????? ?# #? """ ????? | | ????????????????????????"""" # # """ ???? | | ??????????????????????? """" # # """ ""? | | ??????????????????????? """" + + #?? | | ??????????????????????? """" # # """ #?? | | ?????????????????????? # # """ ???? | | ?????????????????????# ?# #? """ ????? | | ?????????????????????# ?# #?? ????? | | ?????????????????????#### ###??# #???####???? | | ????????????????????????#??????# #??????????? | | ???????????????????????????????# #??????????? | | ???????????????????????????????# #??????????? | | ???????????????????????????????# #??????????? | | ???????????????????????????????# #??????????? | | ???????????????????????????????# #??????????? | +----------------------------------------------------+ Best States ------------- Heat Dissipation 28 Energy Generation 10 Energy Capacity 125 Matter Stores 247 Matter Capacity 300 Sight Range 16 Terrain Scan Density 10 Core Shielding 20 Evasion (%) 55 Item Schematics ----------------- None Robot Schematics ------------------ None Fabricated ------------ Nothing Alien Tech Used ----------------- None Achievements -------------- None Challenges ------------ None Game ------ Seed ImprovedStructuralLink Manual? 0 Play Time 00:03:11 Cumulative 9.3 hours Start 2024.04.01 @ 13:33:27 End 2024.04.01 @ 13:36:25 Sessions 1 Manual Loads 0 Difficulty Rogue Special Mode None Game No. 43 Rogue 43 Adventurer 0 Explorer 0 Win Type - Total 0 Types 0/0/0/0/0/0/0/0/0 Lore% 9 Gallery% 12 Achievement% 13 Wizard Run 0 Options --------- Layout 1 ASCII 0 Keyboard 1 Movement Arrows Keybinds 0 Fullscreen 1 Font 24/Smallcaps Map View 50x35 Zoom Use 0% Tactical HUD 1 Map Filters NONE Filters NONE Steam 1 RUN: 762ae0de-6645-46ed-bbbc-a00370d230e6